[Event "MCCT Chessable Masters 2022"]
[Site "Online"]
[Date "2022.05.16"]
[Round "1.6"]
[White "Anton Guijarro, David"]
[Black "Mishra, Abhimanyu"]
[Result "1-0"]
[ECO "D30"]
[WhiteElo "2691"]
[BlackElo "2535"]
[Annotator "TA"]
[PlyCount "105"]
[EventDate "2022.05.19"]
[EventType "tourn"]
[EventCountry "NET"]
[SourceTitle "playchess.com"]
[Source "ChessBase"]
[SourceQuality "1"]
[TimeControl "900+10"]

{[%evp 20,105,19,20,25,14,20,14,20,14,19,0,0,0,0,-10,0,-14,-13,-13,-14,-12,0,0,0,-20,0,0,0,0,0,0,0,0,33,38,0,0,0,0,0,0,0,0,0,0,0,0,212,205,212,222,202,90,193,205,214,214,504,488,540,518,835,828,1178,1204,1207,983,1831,1275,1655,1461,29980,29981,29981,29982,29982,29983,29983,29984,29984,29985,29985,29984,29983,29984,29988,29988]} 1. d4 {[%emt 0:00:00]} d5 {[%emt 0:00:00]} 2. c4 {[%emt 0:00:05]} c6 {[%emt 0:00:02]} 3. Nf3 {[%emt 0:00:03]} Nf6 {[%emt 0:00:02]} 4. e3 {[%emt 0:00:03]} e6 {[%emt 0:00:03]} 5. Nbd2 {[%emt 0:00:06]} Be7 {[%emt 0:00:12]} 6. b3 {[%emt 0:00:22]} O-O {[%emt 0:00:12]} 7. Bd3 {[%emt 0:00:15]} Nbd7 {[%emt 0:00:47]} 8. O-O {[%emt 0:00:13]} dxc4 {[%emt 0:00:54]} 9. bxc4 {[%emt 0:00:30]} c5 {[%emt 0:00:06]} 10. Bb2 {[%emt 0:00:32]} cxd4 {[%emt 0:00:27]} 11. exd4 {[%emt 0:00:03]} b6 {[%emt 0:00:04] D30: Queen's Gambit Declined: Systems without Nc3.} 12. Qe2 {[%emt 0:02:23]} Bb7 {[%emt 0:00:49]} 13. Rfe1 {[%emt 0:00:02]} Re8 {[%emt 0:00:30] The position is equal.} 14. Rad1 {[%emt 0:01:08]} Qc7 {[%emt 0:00:56] [#]} 15. Ng5 $146 {[%emt 0:00:51]} ({Predecessor:} 15. h4 Ng4 16. g3 Ngf6 17. a3 Rad8 18. Bb1 Bd6 19. Ne5 Nxe5 20. dxe5 Bc5 21. Ne4 Nxe4 22. Bxe4 Bxe4 23. Qxe4 {½-½ (42) Goryachkina,A (2434)-Bulmaga,I (2357) Plovdiv 2014}) 15... Bf8 {[%emt 0:01:59]} 16. Rc1 {[%emt 0:01:33]} g6 {[%emt 0:01:55]} 17. Ndf3 {[%emt 0:00:49][%cal Oc4c5]} h6 {[%emt 0:01:19]} 18. Ne4 {[%emt 0:01:11]} Nxe4 {[%emt 0:00:19]} 19. Bxe4 {[%emt 0:00:01]} Bxe4 {[%emt 0:00:07]} 20. Qxe4 {[%emt 0:00:02]} Bg7 {[%emt 0:00:07]} 21. h3 {[%emt 0:00:45]} Rac8 {[%emt 0:00:40]} 22. a4 {[%emt 0:01:21]} Nc5 {[%emt 0:02:13]} 23. Qc2 {[%emt 0:00:28]} Nb7 {[%emt 0:00:06]} 24. d5 {[%emt 0:02:39]} Bxb2 {[%emt 0:02:10]} 25. Qxb2 {[%emt 0:00:03]} exd5 {[%emt 0:00:18]} 26. cxd5 {[%emt 0:00:34]} Qf4 {[%emt 0:00:49]} 27. Rxc8 {[%emt 0:00:25]} Rxc8 {[%emt 0:00:03]} 28. Ne5 {[%emt 0:00:06]} Re8 {[%emt 0:00:35]} 29. Re3 {[%emt 0:00:24][%cal Oe5g6] [#] Threatens to win with Nxg6!} Nd6 {[%emt 0:00:32]} 30. Ng4 {[%emt 0:00:58]} Rxe3 {[%emt 0:00:32]} 31. fxe3 $11 {[%emt 0:00:00][%mdl 4096] Endgame KQN-KQN} Qg3 {[%emt 0:00:34]} 32. Nxh6+ {[%emt 0:01:14]} Kh7 {[%emt 0:00:26]} 33. Ng4 $36 {[%emt 0:00:09][%mdl 2048] [#] Strongly threatening Nf6+. White is more active.} Nf5 $2 {[%emt 0:00:33]} (33... Qe1+ $2 34. Kh2 Nf5 35. Qe5 $18) (33... Ne4 $1 $11 {and Black has nothing to worry.}) 34. Qf2 $18 {[%emt 0:00:32]} Qxf2+ {[%emt 0:00:13]} 35. Kxf2 {[%emt 0:00:00] KN-KN} ({Don't take} 35. Nxf2 $6 Kg7 $14) 35... Nd6 {[%emt 0:00:04]} 36. Kf3 {[%emt 0:00:13]} (36. Ke2 $18) 36... f5 {[%emt 0:00:07]} (36... b5 $16 {is a better defense.}) 37. Ne5 {[%emt 0:00:34] Black must now prevent g4.} Kg7 {[%emt 0:00:11]} 38. Nc6 {[%emt 0:00:09] aiming for Kf4.} a6 $2 {[%emt 0:00:11]} (38... a5 39. Kf4 Kf6) 39. g4 {[%emt 0:00:09]} Kf6 {[%emt 0:00:14]} 40. h4 {[%emt 0:00:21]} a5 {[%emt 0:00:16]} (40... g5 $142 41. gxf5 Kxf5) 41. Kf4 {[%emt 0:00:19]} fxg4 {[%emt 0:00:11]} 42. Kxg4 {[%emt 0:00:12]} b5 {[%emt 0:00:02]} 43. axb5 {[%emt 0:00:03][%cal Ba4b5,Bb5b6][%mdl 32]} a4 {[%emt 0:00:03]} 44. b6 {[%emt 0:00:08]} a3 {[%emt 0:00:04]} 45. Nb4 {[%emt 0:00:02]} Ke5 {[%emt 0:00:15]} 46. Kg5 {[%emt 0:00:06] White mates.} Nb7 {[%emt 0:00:22]} 47. Kxg6 {[%emt 0:00:08]} Kd6 {[%emt 0:00:01]} 48. h5 {[%emt 0:00:09]} Kc5 {[%emt 0:00:00]} 49. Na2 {[%emt 0:00:03]} Kc4 {[%emt 0:00:05]} 50. h6 {[%emt 0:00:06]} Kb3 {[%emt 0:00:01]} 51. h7 {[%emt 0:00:05]} Kxa2 {[%emt 0:00:01]} 52. h8=Q {[%emt 0:00:01]} Kb1 {[%emt 0:00:09]} 53. Qh1+ {[%emt 0:00:11] Weighted Error Value: White=0.07 (flawless) /Black=0.47} 1-0

[Event "MCCT Chessable Masters 2022"]
[Site "Online"]
[Date "2022.05.16"]
[Round "1.7"]
[White "Ding, Liren"]
[Black "Van Foreest, Jorden"]
[Result "1-0"]
[ECO "D32"]
[WhiteElo "2806"]
[BlackElo "2715"]
[Annotator "TA"]
[PlyCount "69"]
[EventDate "2022.05.19"]
[EventType "tourn"]
[EventCountry "NET"]
[SourceTitle "playchess.com"]
[Source "ChessBase"]
[SourceQuality "1"]
[TimeControl "900+10"]

{[%evp 21,69,20,16,22,26,20,29,8,8,11,89,68,93,74,66,73,64,73,74,64,143,108,121,102,112,9,25,0,0,0,0,-19,-17,-20,0,0,0,0,0,0,0,0,155,54,29994,29995,29995,29996,29998,29999]} 1. Nf3 {[%emt 0:00:00]} d5 {[%emt 0:00:00]} 2. e3 {[%emt 0:00:02]} Nf6 {[%emt 0:00:24]} 3. c4 {[%emt 0:00:05]} e6 {[%emt 0:00:02]} 4. Nc3 {[%emt 0:00:01]} c5 {[%emt 0:00:03]} 5. d4 {[%emt 0:00:42]} Nc6 {[%emt 0:00:04]} 6. cxd5 {[%emt 0:00:31]} exd5 {[%emt 0:00:04]} 7. Bb5 {[%emt 0:00:01]} a6 {[%emt 0:01:21]} 8. Bxc6+ {[%emt 0:00:09]} bxc6 {[%emt 0:00:00]} 9. O-O {[%emt 0:00:23]} Bd6 {[%emt 0:00:27]} 10. dxc5 {[%emt 0:00:11]} Bxc5 {[%emt 0:00:02]} 11. b3 {[%emt 0:00:00]} O-O {[%emt 0:00:13]} 12. Bb2 {[%emt 0:00:05] D32: Tarrasch Defence: Sidelines and lines without g3.} Bd6 {[%emt 0:01:05]} 13. Rc1 {[%emt 0:00:21]} Bg4 {[%emt 0:00:50]} 14. Ne2 {[%emt 0:00:08] White has an edge.} c5 {[%emt 0:00:33]} 15. Ng3 {[%emt 0:02:58] [#]} Rc8 $146 {[%emt 0:02:07]} (15... Bxg3 $11 {remains equal.} 16. hxg3 Ne4) ({Predecessor:} 15... Bxg3 16. hxg3 Ne4 17. Qd3 Be6 18. Nd2 Nxd2 19. Qxd2 c4 20. Qc3 f6 21. Rfd1 Qb6 22. bxc4 {½-½ (22) Nisipeanu,L (2686)-Melkumyan,H (2633) Sydney 2014}) 16. Bxf6 $16 {[%emt 0:03:33]} gxf6 {[%emt 0:00:03]} 17. h3 {[%emt 0:00:45]} Be6 {[%emt 0:00:14]} 18. Nh4 {[%emt 0:01:15][%cal Bf3h4,Bh4f5,Bf5h6][%mdl 32]} Kh8 {[%emt 0:00:13]} 19. Nhf5 {[%emt 0:01:08]} Bb8 {[%emt 0:00:22]} 20. Nh6 {[%emt 0:00:13]} f5 {[%emt 0:03:48]} (20... Bxg3 $14 21. fxg3 Qc7) 21. Ngxf5 {[%emt 0:00:29][%cal Oc1c5] Strongly threatening Rxc5! Pair of Knights!} ({Resist} 21. Nhxf5 $6 Qf6 $14) 21... Qf6 {[%emt 0:00:06]} 22. Qh5 {[%emt 0:00:59]} Rfe8 {[%emt 0:01:03]} 23. f4 {[%emt 0:00:40] White is more active.} (23. Qf3 $16) 23... Qg6 $11 {[%emt 0:00:28]} 24. g4 {[%emt 0:00:07]} Qxh5 {[%emt 0:00:18]} 25. gxh5 {[%emt 0:00:00]} d4 $1 {[%emt 0:00:01]} 26. Kh2 {[%emt 0:01:20][%cal Bg1h2,Bh2g3,Bg3h4][%mdl 32]} dxe3 {[%emt 0:02:00]} 27. Nxe3 {[%emt 0:00:09]} Rcd8 {[%emt 0:00:10]} 28. Kg3 {[%emt 0:02:20]} Rd2 {[%emt 0:02:02]} 29. Rxc5 {[%emt 0:00:10]} Rxa2 {[%emt 0:00:02]} 30. Nc4 {[%emt 0:00:20] Prevents Rb2.} Rd8 {[%emt 0:00:26]} 31. Rf3 {[%emt 0:00:11]} Rd1 $2 {[%emt 0:00:40] [#]} (31... Kg7 $11 32. Ng4 h6) 32. Kh4 {[%emt 0:00:11]} (32. Nxf7+ $1 $16 {[%mdl 512]} Kg7 (32... Bxf7 33. Rc8+) 33. Nfe5) 32... Ba7 $2 {[%emt 0:00:07][%mdl 8192] [#]} (32... Rg2 $14) 33. Rg3 $1 {[%emt 0:00:19][%csl Gh6][%cal Rg3g8] White mates.} Rd8 {[%emt 0:01:02] [#]} 34. Ne5 $1 {[%emt 0:00:06]} Bxc5 {[%emt 0:00:20]} (34... Rf8 35. Nhxf7+) 35. Nexf7+ {[%emt 0:00:02] Weighted Error Value: White=0.20 (precise) /Black=0.50} 1-0

[Event "MCCT Chessable Masters 2022"]
[Site "Online"]
[Date "2022.05.16"]
[Round "1.8"]
[White "Hansen, Eric"]
[Black "Mamedyarov, Shakhriyar"]
[Result "1/2-1/2"]
[ECO "C77"]
[WhiteElo "2606"]
[BlackElo "2770"]
[Annotator "TA"]
[PlyCount "120"]
[EventDate "2022.05.19"]
[EventType "tourn"]
[EventCountry "NET"]
[SourceTitle "playchess.com"]
[Source "ChessBase"]
[SourceQuality "1"]
[TimeControl "900+10"]

{[%evp 12,120,8,2,13,14,5,0,11,0,0,0,0,0,3,-1,0,0,7,-9,-8,-38,-34,-31,0,0,0,0,0,0,0,-38,-29,-98,-111,-98,-89,-88,-92,-94,-66,-63,-73,-65,-62,-68,-65,-62,-67,-68,-54,-67,-72,-116,-62,-70,-60,-62,-18,-40,-18,-74,-85,-108,-104,-97,-94,-99,-102,-84,-84,-110,0,-88,-105,-83,-70,-127,0,-77,0,-118,0,0,0,0,0,0,0,0,0,0,0,0,0,0,0,0,0,0,0,0,0,0,0,0,0,0,0,0,0]} 1. e4 {[%emt 0:00:00]} e5 {[%emt 0:00:00]} 2. Nf3 {[%emt 0:00:02]} Nc6 {[%emt 0:00:01]} 3. Bb5 {[%emt 0:00:12][%cal Bf1b5,Bb5a4,Ba4b3,Bb3d5][%mdl 32]} a6 {[%emt 0:00:01]} 4. Ba4 {[%emt 0:00:02]} Nf6 {[%emt 0:00:04]} 5. d3 {[%emt 0:00:26]} b5 {[%emt 0:00:05]} 6. Bb3 {[%emt 0:00:03]} Bc5 {[%emt 0:00:01]} 7. a4 {[%emt 0:00:42] White wants to play axb5. 7.c3 gains popularity.} Rb8 {[%emt 0:00:04] C77: Ruy Lopez: 3...a6 4 Ba4 Nf6, unusual lines.} 8. axb5 {[%emt 0:00:02]} axb5 {[%emt 0:00:00]} 9. Nc3 {[%emt 0:00:11]} d6 {[%emt 0:00:46]} 10. Nd5 {[%emt 0:00:41]} Nxd5 {[%emt 0:01:09]} 11. Bxd5 {[%emt 0:00:03]} Ne7 {[%emt 0:00:03]} 12. Bb3 {[%emt 0:00:02]} O-O {[%emt 0:00:11]} 13. c3 {[%emt 0:01:12]} Bb6 {[%emt 0:00:11]} 14. O-O {[%emt 0:00:23]} h6 {[%emt 0:00:28]} 15. h3 {[%emt 0:00:21]} Ng6 {[%emt 0:00:43]} 16. d4 {[%emt 0:00:32]} Qf6 {[%emt 0:00:04]} 17. Be3 {[%emt 0:00:04]} Nf4 {[%emt 0:01:05][%cal Of4h3]} 18. Kh2 {[%emt 0:00:02] [#]} c5 $146 {[%emt 0:00:22]} ({Predecessor:} 18... g5 19. Ng1 b4 20. g3 bxc3 21. bxc3 Ne6 22. Nf3 Bb7 23. Bd5 exd4 24. cxd4 Bxd5 25. exd5 {½-½ (41) Gareyev,T (2551)-Tarlev,K (2454) Moscow 2007}) 19. Bc2 {[%emt 0:00:43]} Re8 {[%emt 0:00:39]} 20. d5 {[%emt 0:03:35]} c4 {[%emt 0:00:55]} 21. Ng1 {[%emt 0:00:15]} Qg6 {[%emt 0:01:38][%csl Gf4][%cal Rg6g2]} 22. Qf3 {[%emt 0:01:09] [#]} (22. Bxf4 $11 exf4 23. Nf3) 22... Nxd5 $1 $17 {[%emt 0:00:23]} 23. Bxb6 {[%emt 0:00:32]} Rxb6 {[%emt 0:00:58]} 24. Rfd1 {[%emt 0:00:04]} Nf6 {[%emt 0:01:01]} 25. Qe3 {[%emt 0:00:47]} Rb8 {[%emt 0:00:07][%cal Od6d5]} 26. Rd2 {[%emt 0:01:11]} Rd8 {[%emt 0:01:46]} 27. Rad1 {[%emt 0:00:12]} Ne8 {[%emt 0:00:52]} 28. f4 {[%emt 0:00:42]} Qf6 {[%emt 0:00:25]} 29. fxe5 {[%emt 0:00:20]} Qxe5+ {[%emt 0:00:00]} 30. Kh1 {[%emt 0:00:01]} Bb7 {[%emt 0:00:42]} 31. Nf3 {[%emt 0:00:07]} Qg3 {[%emt 0:00:02]} 32. Qa7 {[%emt 0:00:31]} Bc6 {[%emt 0:01:23]} ({Better is} 32... Nf6 $17 33. Rxd6 Re8) 33. Nd4 $15 {[%emt 0:00:59]} Bd7 {[%emt 0:00:01]} 34. Ne2 {[%emt 0:01:23]} Qh4 {[%emt 0:00:04]} 35. Qe3 $1 {[%emt 0:00:07]} Qe7 {[%emt 0:00:24]} 36. Qf4 {[%emt 0:00:12]} (36. e5 $11) 36... b4 $17 {[%emt 0:00:42]} 37. cxb4 {[%emt 0:00:35]} Rxb4 {[%emt 0:00:00]} 38. Nc3 {[%emt 0:00:03] Nd5 is the strong threat.} Rxb2 {[%emt 0:00:57]} 39. e5 {[%emt 0:02:20] Against Nf6} dxe5 {[%emt 0:00:00]} ({Of course not} 39... Qxe5 $6 40. Qxe5 dxe5 41. Bh7+ Kxh7 42. Rxb2 $11) 40. Qe3 {[%emt 0:00:10][%cal Oc2h7]} Kh8 {[%emt 0:00:57] Inhibits Bh7.} 41. Nd5 {[%emt 0:00:02]} Qg5 {[%emt 0:00:19]} (41... Qe6 $17 {[%cal Ob2c2] And now ...Rxc2! would win.} 42. Qc3 Rbb8) 42. Qa3 {[%emt 0:00:04] [#]} (42. Qxg5 $1 $11 hxg5 43. Ne3) 42... Rxc2 $1 {[%emt 0:00:19]} 43. Rxc2 {[%emt 0:00:22] Hoping for Qf8+.} Bc6 {[%emt 0:01:52]} 44. Rcd2 {[%emt 0:00:03]} ({Don't go for} 44. Qf8+ $2 Kh7 45. Qc5 Ba4 46. Qxc4 Bxc2 47. Qxc2+ f5 $19) (44. Qc5 $1 $15 Rd6 45. Ne3) 44... Kh7 {[%emt 0:00:27]} (44... Rd6 $17 {Threatens to win with ...e4.} 45. Qb2 Ba4) 45. Qc3 {[%emt 0:00:20]} (45. Qe3 $11 {remains equal.}) 45... Nd6 {[%emt 0:00:13]} (45... Ba4 $17 46. Re1 f6) 46. Qc2+ {[%emt 0:00:11]} (46. Qe3 $1 $11 {was the only way to keep the balance.} Ba4 47. Qxg5 hxg5 48. Ra1) 46... g6 {[%emt 0:00:01]} ({Black should try} 46... f5 $17 {aiming for ...Ra8.} 47. Nc3 Qg6) 47. Nc3 $11 {[%emt 0:00:18] The position is equal.} Nb7 {[%emt 0:00:12][%cal Bd6b7,Bb7d8,Bd8c6,Bc6e7,Be7f5][%mdl 32]} 48. Rxd8 {[%emt 0:00:14]} Nxd8 {[%emt 0:00:00]} 49. Nd5 {[%emt 0:00:27]} Qh4 {[%emt 0:00:23]} 50. Qc3 {[%emt 0:00:06]} Bxd5 {[%emt 0:00:13]} 51. Rxd5 {[%emt 0:00:01][%mdl 4096] Endgame KQR-KQN} Nc6 {[%emt 0:00:03]} 52. Qf3 {[%emt 0:00:16]} Kg7 {[%emt 0:00:10]} 53. Rd7 {[%emt 0:00:05][%csl LRc6,LRf7]} Ne7 $1 {[%emt 0:00:17]} (53... Qf6 $2 54. Qxf6+ Kxf6 55. Rd6+ Ke7 56. Rxc6 $18) 54. Qb7 {[%emt 0:00:16]} Nf5 {[%emt 0:00:13]} 55. Rxf7+ {[%emt 0:00:08]} Kg8 {[%emt 0:00:01]} 56. Rd7 {[%emt 0:00:24] White threatens Qc8+ and mate.} Qe1+ {[%emt 0:00:03]} 57. Kh2 {[%emt 0:00:01][%cal Rd7d8]} Qg3+ {[%emt 0:00:00]} 58. Kh1 {[%emt 0:00:03][%cal Rd7d8]} Qe1+ {[%emt 0:00:01]} 59. Kh2 {[%emt 0:00:00][%cal Rd7d8] Chess con chili.} Qg3+ {[%emt 0:00:00]} 60. Kh1 {[%emt 0:00:01][%cal Rd7d8]} Qe1+ {[%emt 0:00:01] Weighted Error Value: White=0.15 (very precise) /Black=0.13 (very precise)} 1/2-1/2

[Event "MCCT Chessable Masters 2022"]
[Site "Online"]
[Date "2022.05.16"]
[Round "2.1"]
[White "Carlsen, Magnus"]
[Black "Mamedyarov, Shakhriyar"]
[Result "1/2-1/2"]
[ECO "A20"]
[WhiteElo "2864"]
[BlackElo "2770"]
[Annotator "TA"]
[PlyCount "113"]
[EventDate "2022.05.19"]
[EventType "tourn"]
[EventCountry "NET"]
[SourceTitle "playchess.com"]
[Source "ChessBase"]
[SourceQuality "1"]
[TimeControl "900+10"]

{[%evp 9,113,0,0,0,0,0,0,0,0,0,0,0,0,-4,0,0,0,0,0,0,21,22,24,19,17,17,25,-29,-16,-46,-18,-18,0,0,0,-6,-6,-4,-5,-3,-10,-6,-4,-24,-4,-6,-8,-8,-8,-8,0,0,0,-6,0,0,0,0,0,0,0,0,0,0,0,0,0,0,0,0,0,0,0,0,0,0,0,0,0,0,0,0,0,0,0,0,0,0,0,0,0,0,0,0,0,0,0,0,0,0,0,0,0,0,0,0]} 1. c4 {[%emt 0:00:00]} e5 {[%emt 0:00:00]} 2. g3 {[%emt 0:00:03]} (2. Nc3 Bb4 3. Nd5 Be7 4. Nf3 d6 5. d4 Nf6 6. Nxe7 Qxe7 7. e3 exd4 8. Nxd4 O-O 9. Be2 Rd8 10. O-O c5 11. Nf3 Nc6 12. Bd2 d5 13. cxd5 Rxd5 14. Qb3 Be6 15. Bc3 Ne4 16. Bc4 Rd6 17. Bxe6 Rxe6 {0-1 (65) Carlsen,M (2864)-Mamedyarov,S (2771) Oslo 2022}) 2... c6 {[%emt 0:00:25]} 3. d4 {[%emt 0:00:04]} e4 {[%emt 0:00:01]} 4. d5 {[%emt 0:00:01]} Nf6 {[%emt 0:00:03]} 5. Bg2 {[%emt 0:00:03]} Bb4+ {[%emt 0:00:11]} 6. Bd2 {[%emt 0:00:08] A20: English Opening: 1...e5.} Qe7 {[%emt 0:00:08]} 7. Nc3 {[%emt 0:01:19]} O-O {[%emt 0:00:13]} 8. a3 {[%emt 0:00:38]} Bxc3 {[%emt 0:00:35]} 9. Bxc3 {[%emt 0:00:03]} cxd5 {[%emt 0:00:07]} 10. cxd5 {[%emt 0:02:15]} d6 {[%emt 0:00:16]} 11. Nh3 {[%emt 0:00:16] [#]} Nbd7 $146 {[%emt 0:00:37]} ({Predecessor:} 11... Bf5 12. O-O Nbd7 13. Nf4 h6 14. f3 Ne5 15. Qd4 Rfc8 16. Rad1 b5 17. Qe3 Nc4 {½-½ (69) Ding,L (2782)-Anand,V (2803) Bilbao 2015}) 12. O-O {[%emt 0:00:09]} Re8 {[%emt 0:01:14]} 13. Nf4 {[%emt 0:02:12]} Ne5 {[%emt 0:00:27]} 14. f3 {[%emt 0:00:16]} Ng6 {[%emt 0:02:19]} 15. Nxg6 {[%emt 0:02:09]} hxg6 {[%emt 0:00:00]} 16. Qd4 {[%emt 0:00:40] fxe4 is the strong threat.} exf3 {[%emt 0:00:25]} 17. Rxf3 {[%emt 0:01:03]} Qe4 {[%emt 0:00:33]} 18. Qf2 {[%emt 0:01:16]} (18. Qxe4 $142 Nxe4 19. Bd4) 18... Bf5 $11 {[%emt 0:02:12]} (18... Qxe2 $2 19. Rxf6 Qxf2+ 20. Rxf2 $18) 19. Re1 {[%emt 0:00:41]} Ng4 {[%emt 0:01:33]} 20. Qd4 {[%emt 0:00:08]} Qxd4+ {[%emt 0:00:34]} 21. Bxd4 {[%emt 0:00:04] This bishop pair is nice.} Be4 {[%emt 0:00:04][%csl LRd5,LRf3]} 22. Rf4 {[%emt 0:01:24]} Bxg2 {[%emt 0:00:06]} 23. Kxg2 {[%emt 0:00:00]} Ne3+ {[%emt 0:00:30]} 24. Bxe3 {[%emt 0:00:03]} Rxe3 {[%emt 0:00:00][%mdl 4096] Endgame KRR-KRR} 25. Rb4 {[%emt 0:00:07]} b6 {[%emt 0:00:05]} 26. Kf2 {[%emt 0:00:01]} Rae8 {[%emt 0:00:05]} 27. Ra4 {[%emt 0:00:14] The position is equal.} a5 {[%emt 0:01:05]} 28. Rc4 {[%emt 0:00:02]} Rb3 {[%emt 0:00:35]} 29. Rc2 {[%emt 0:00:01]} f5 {[%emt 0:00:56]} 30. Rd1 {[%emt 0:00:16]} Kf7 {[%emt 0:00:26]} 31. Rdd2 {[%emt 0:00:25]} Kf6 {[%emt 0:00:04]} 32. Rc6 {[%emt 0:00:01]} Rd8 {[%emt 0:00:01]} 33. Rdc2 {[%emt 0:00:30]} g5 {[%emt 0:00:12]} 34. R2c3 {[%emt 0:00:56]} Rxc3 {[%emt 0:02:31]} 35. bxc3 {[%emt 0:00:19] KR-KR} b5 {[%emt 0:00:47]} 36. Rb6 {[%emt 0:00:02]} Ke5 {[%emt 0:00:15]} 37. Rxb5 {[%emt 0:00:01]} Rh8 {[%emt 0:00:15]} 38. Kg2 {[%emt 0:00:04]} Rc8 {[%emt 0:00:03]} 39. Rxa5 {[%emt 0:00:01]} Rxc3 {[%emt 0:00:01]} 40. a4 {[%emt 0:00:06]} Ra3 {[%emt 0:00:06]} 41. Ra7 {[%emt 0:01:15]} g4 {[%emt 0:00:02]} 42. a5 {[%emt 0:00:05]} g5 {[%emt 0:00:15]} 43. a6 {[%emt 0:00:06]} Kxd5 {[%emt 0:00:13]} 44. Ra8 {[%emt 0:00:06]} Ra2 {[%emt 0:00:04]} 45. Kf1 {[%emt 0:00:12]} f4 {[%emt 0:00:28]} 46. a7 {[%emt 0:00:03]} f3 {[%emt 0:00:20]} 47. Rg8 {[%emt 0:01:59]} fxe2+ {[%emt 0:00:05]} 48. Kf2 {[%emt 0:00:02]} Rxa7 {[%emt 0:00:13]} 49. Rxg5+ {[%emt 0:00:12]} Ke4 {[%emt 0:00:09] [#] Strongly threatening ...Rh7.} 50. Kxe2 {[%emt 0:00:02]} Ra2+ {[%emt 0:00:01]} 51. Kd1 {[%emt 0:00:04]} Kf3 {[%emt 0:00:25]} ({Don't play} 51... Rxh2 52. Rxg4+ Kd3 53. Ke1 $15) 52. Rh5 {[%emt 0:00:18]} d5 {[%emt 0:00:02] aiming for ...d4.} 53. h3 {[%emt 0:00:05]} Kxg3 {[%emt 0:00:13]} 54. hxg4 {[%emt 0:00:01]} Kxg4 {[%emt 0:00:01]} 55. Rxd5 {[%emt 0:00:01]} Rf2 {[%emt 0:00:02]} 56. Rd2 {[%emt 0:00:00]} Rxd2+ {[%emt 0:00:02]} 57. Kxd2 {[%emt 0:00:00] A balanced but interesting game.  Weighted Error Value: White=0.04 (flawless) /Black=0.02 (flawless)} 1/2-1/2

[Event "MCCT Chessable Masters 2022"]
[Site "Online"]
[Date "2022.05.16"]
[Round "2.2"]
[White "Van Foreest, Jorden"]
[Black "Hansen, Eric"]
[Result "0-1"]
[ECO "C51"]
[WhiteElo "2715"]
[BlackElo "2606"]
[Annotator "TA"]
[PlyCount "80"]
[EventDate "2022.05.19"]
[EventType "tourn"]
[EventCountry "NET"]
[SourceTitle "playchess.com"]
[Source "ChessBase"]
[SourceQuality "1"]
[TimeControl "900+10"]

{[%evp 12,80,-7,-22,0,0,0,-12,-8,-3,0,-19,0,-11,0,4,24,6,12,16,18,17,52,27,17,0,-13,0,0,0,0,0,0,-20,7,10,9,8,28,5,0,0,0,0,7,0,59,0,0,-823,-821,-829,-821,-798,-800,-1162,-1143,-1119,-1062,-6355,-6277,-6355,-6269,-5462,-2040,-1672,-1636,-29989,-29990,-29993,-29994]} 1. e4 {[%emt 0:00:00]} e5 {[%emt 0:00:00]} 2. Nf3 {[%emt 0:00:04]} Nc6 {[%emt 0:00:12]} 3. Bc4 {[%emt 0:00:03]} Bc5 {[%emt 0:00:11]} 4. b4 {[%emt 0:00:02]} Bxb4 {[%emt 0:00:13]} 5. c3 {[%emt 0:00:01]} Be7 {[%emt 0:01:11]} 6. d4 {[%emt 0:00:07]} Na5 {[%emt 0:00:23]} 7. Be2 {[%emt 0:00:02]} d6 {[%emt 0:00:04] C51: Evans Gambit: Declined and Accepted without 5...Ba5.} 8. Qa4+ {[%emt 0:00:02]} c6 {[%emt 0:00:02]} 9. dxe5 {[%emt 0:00:01]} dxe5 {[%emt 0:00:21] The position is equal.} 10. Nxe5 {[%emt 0:00:04]} Nf6 {[%emt 0:00:25]} 11. O-O {[%emt 0:00:03]} O-O {[%emt 0:00:53]} 12. Bf4 {[%emt 0:00:06]} b5 {[%emt 0:00:11]} 13. Qc2 {[%emt 0:00:04]} Re8 $5 {[%emt 0:00:20][%mdl 4] [#] Leaves trodden paths.} 14. Rd1 $146 {[%emt 0:04:19]} ({Predecessor:} 14. Nf3 Bg4 15. Nbd2 Bh5 16. Bd3 Bg6 17. Ne5 Bd6 18. Nxg6 hxg6 19. Bxd6 Qxd6 20. Nf3 Nd7 21. Rad1 Qc7 22. Ng5 Ne5 23. f4 Nxd3 24. Qxd3 {½-½ (24) Gonzalez Perez,A (2472)-Veiga,J (2322) Penafiel 2020}) 14... Qb6 {[%emt 0:00:36]} 15. Nd2 {[%emt 0:00:02][%cal Bb1d2,Bd2f3,Bf3e5][%mdl 32]} Be6 {[%emt 0:00:27]} 16. Ndf3 {[%emt 0:00:12]} Ng4 {[%emt 0:00:23]} 17. Nxg4 {[%emt 0:01:50]} Bxg4 {[%emt 0:00:02]} 18. Ne5 {[%emt 0:00:27]} Be6 {[%emt 0:00:12]} 19. Qd3 {[%emt 0:01:59]} Rad8 {[%emt 0:01:10]} 20. Qg3 {[%emt 0:00:02]} Rxd1+ {[%emt 0:00:01]} 21. Rxd1 {[%emt 0:00:02]} Rd8 {[%emt 0:00:03]} 22. Ra1 {[%emt 0:00:55]} Qc5 {[%emt 0:04:35]} 23. h4 {[%emt 0:02:06]} Bf6 {[%emt 0:00:07]} 24. h5 {[%emt 0:00:15]} h6 {[%emt 0:00:05]} 25. Rc1 {[%emt 0:00:19]} Qa3 {[%emt 0:00:33] And now ...Bxe5 would win.} 26. Nf3 {[%emt 0:00:30] Strongly threatening e5.} Kh8 {[%emt 0:00:52]} (26... Bxc3 $2 {[#]} 27. Rxc3 $1 {[%mdl 512]} Qxc3 28. Be5 Qc1+ 29. Kh2 $18) (26... Qxa2 $2 27. e5 Be7 28. Bxh6 $1 $18) 27. e5 {[%emt 0:01:30]} Be7 {[%emt 0:00:02]} 28. Nd4 {[%emt 0:00:29]} Qxa2 {[%emt 0:00:03]} (28... Bxa2 $11 29. Rd1 (29. Nf5 Bf8 $11) 29... Rg8) 29. Rc2 {[%emt 0:00:50]} (29. Nxe6 $14 Qxe6 30. Ra1) 29... Qb1+ $11 {[%emt 0:00:04]} 30. Kh2 $2 {[%emt 0:00:18][%mdl 8192] [#]} (30. Rc1 $11 Qb2 31. Bd3) 30... Rxd4 $1 $19 {[%emt 0:00:17][%mdl 512]} 31. Rc1 {[%emt 0:00:24]} Qe4 {[%emt 0:00:03]} 32. cxd4 {[%emt 0:00:10]} Qxe2 {[%emt 0:00:01]} 33. Ra1 {[%emt 0:00:37]} Qxh5+ {[%emt 0:00:21]} 34. Kg1 {[%emt 0:00:02]} Nb3 {[%emt 0:01:07]} 35. Rxa7 {[%emt 0:00:03]} Qd1+ {[%emt 0:00:01]} 36. Kh2 {[%emt 0:00:01] [#]} Nxd4 $1 {[%emt 0:00:01] ( -> ...Qh5+)} 37. f3 {[%emt 0:00:36]} Ne2 {[%emt 0:01:36][%csl Ge2][%cal Rd1g1]} 38. Qf2 {[%emt 0:00:02] Against Qg1+} Bh4 {[%emt 0:00:39]} 39. Qe3 {[%emt 0:00:28]} Nxf4 {[%emt 0:00:04]} 40. Qxf4 {[%emt 0:00:36]} Bf2 {[%emt 0:00:13] Weighted Error Value: White=0.83/Black=0.19 (very precise)} 0-1